bitfinex/quotes_SOLUSD_20230103
["timestamp","ask_amount","ask_price","bid_price","bid_amount"]
[1672732693328,532.7142,11.958,11.948,20.0]
[1672732693948,30.0,11.957,11.948,20.0]
[1672732694156,30.0,11.957,11.948,29.36139492]
[1672732694370,532.7142,11.958,11.948,29.36139492]
[1672732694587,532.7142,11.958,11.949,71.54574615]
[1672732694795,469.9042,11.958,11.95,20.0]
[1672732695005,312.0,11.958,11.95,20.0]
[1672732695217,312.0,11.958,11.951,9.36139492]
[1672732695429,24.5812,11.959,11.952,20.0]
[1672732695633,23.8266,11.964,11.952,163.69252881]
[1672732695850,23.8266,11.964,11.953,9.36139492]
[1672732696175,165.549,11.967,11.954,94.93744933]
[1672732696366,165.549,11.967,11.954,166.48319548]
[1672732696576,165.549,11.967,11.955,155.8445904]
[1672732697010,165.549,11.967,11.954,20.0]
[1672732697011,165.549,11.967,11.956,175.8445904]
[1672732697211,165.549,11.967,11.956,9.36139492]
[1672732697418,165.549,11.967,11.957,9.36139492]
[1672732697628,165.549,11.967,11.958,20.0]
[1672732697846,23.9075,11.968,11.958,20.0]
[1672732698061,23.9075,11.968,11.959,9.36139492]
[1672732698274,166.0346,11.973,11.959,9.36139492]
[1672732698480,30.0,11.971,11.96,20.0]
[1672732698896,12.62,11.97,11.96,20.0]
[1672732699109,75.48,11.97,11.956,9.36139492]
[1672732699439,75.48,11.97,11.957,20.0]
[1672732699653,30.0,11.969,11.957,20.0]
[1672732700887,30.0,11.969,11.958,9.36139492]
[1672732701222,30.0,11.969,11.959,20.0]
[1672732701630,30.0,11.969,11.958,20.0]
[1672732703539,30.0,11.969,11.956,20.0]
[1672732704064,30.0,11.969,11.956,29.36139492]
[1672732705955,124.1707,11.97,11.956,91.36251448]
[1672732706479,312.0,11.969,11.956,91.36251448]
[1672732709623,312.0,11.969,11.956,156.31817875]
[1672732711199,111.4407,11.97,11.956,156.31817875]
[1672732711200,111.4407,11.97,11.957,30.0]
[1672732711406,23.187,11.975,11.959,30.0]
[1672732711739,23.187,11.975,11.96,20.0]
[1672732711927,23.187,11.975,11.96,156.31817875]
[1672732712263,23.187,11.975,11.961,136.31817875]
[1672732712470,23.187,11.975,11.962,20.0]
[1672732712687,23.187,11.975,11.962,91.36251448]
[1672732712871,85.907,11.975,11.962,91.36251448]
[1672732713208,115.907,11.975,11.962,82.00111956]
[1672732713401,30.0,11.975,11.963,9.36139492]
[1672732713608,30.0,11.975,11.964,20.0]
[1672732713945,92.72,11.975,11.965,9.36139492]
[1672732714153,404.72,11.975,11.966,20.0]
[1672732715222,404.72,11.975,11.965,20.0]
[1672732715405,342.0,11.975,11.966,9.36139492]
[1672732715616,404.72,11.975,11.967,20.0]
[1672732716157,342.0,11.975,11.967,20.0]
[1672732716371,404.72,11.975,11.967,20.0]
[1672732716899,312.0,11.975,11.967,20.0]
[1672732717089,374.72,11.975,11.967,20.0]
[1672732717830,30.0,11.974,11.967,20.0]
[1672732718159,30.0,11.972,11.964,20.0]
[1672732718360,62.75,11.971,11.964,20.0]
[1672732718776,62.75,11.971,11.961,9.36139492]
[1672732718990,30.0,11.97,11.961,9.36139492]
[1672732719316,62.76,11.969,11.961,9.36139492]
[1672732719521,62.76,11.969,11.957,62.00111956]
[1672732719725,62.76,11.969,11.958,9.36139492]
[1672732720136,62.76,11.969,11.958,71.36251448]
[1672732720350,62.76,11.969,11.958,62.00111956]
[1672732722029,62.76,11.969,11.959,20.0]
[1672732722357,30.0,11.968,11.959,20.0]
[1672732722577,62.77,11.967,11.956,20.0]
[1672732723324,114.5149,11.968,11.957,9.36139492]
[1672732723621,114.5149,11.968,11.958,20.0]
[1672732724248,114.5149,11.968,11.958,29.36139492]
[1672732724571,114.5149,11.968,11.959,62.61566427]
[1672732724784,114.5149,11.968,11.96,20.0]
[1672732724974,312.0,11.969,11.96,20.0]
[1672732725513,312.0,11.969,11.96,91.97705919]
[1672732725738,62.74,11.973,11.96,145.71667875]
[1672732725956,62.72,11.975,11.96,145.71667875]
[1672732726567,202.1891,11.975,11.96,136.35528383]
[1672732726776,30.0,11.972,11.96,62.61566427]
[1672732726985,62.75,11.971,11.96,62.61566427]
[1672732727209,62.75,11.971,11.957,115.5163]
[1672732727417,109.4691,11.97,11.957,115.5163]
[1672732727629,109.4691,11.97,11.957,124.87769492]
[1672732728052,109.4691,11.97,11.958,20.0]
[1672732728053,157.747,11.97,11.958,20.0]
[1672732728460,157.747,11.97,11.958,83.10101448]
[1672732728681,469.747,11.97,11.958,83.10101448]
[1672732729297,469.747,11.97,11.958,73.73961956]
[1672732729506,469.747,11.97,11.958,20.0]
[1672732730366,30.0,11.969,11.958,20.0]
[1672732730681,62.76,11.968,11.958,20.0]
[1672732731075,142.411,11.969,11.958,20.0]
[1672732734034,79.651,11.969,11.958,20.0]
[1672732734247,142.411,11.969,11.958,20.0]
[1672732734456,79.651,11.969,11.958,20.0]
[1672732735088,79.651,11.969,11.958,63.50349402]
[1672732735822,79.651,11.969,11.959,62.61566427]
[1672732736035,142.411,11.969,11.96,20.0]
[1672732736656,142.411,11.969,11.958,20.0]
[1672732737712,142.411,11.969,11.959,43.50349402]
[1672732738035,142.411,11.969,11.96,20.0]
[1672732738249,142.411,11.969,11.958,43.50349402]
[1672732738465,142.411,11.969,11.959,20.0]
[1672732739073,312.0,11.965,11.959,20.0]
[1672732739285,312.0,11.965,11.959,63.50349402]
[1672732739911,312.0,11.965,11.959,20.0]
[1672732740120,312.0,11.965,11.958,20.0]
[1672732740861,312.0,11.965,11.958,63.50349402]
[1672732742538,312.0,11.965,11.955,43.50349402]
[1672732742750,30.0,11.963,11.951,43.50349402]
[1672732742964,30.0,11.961,11.951,43.50349402]
[1672732743177,62.8,11.96,11.951,43.50349402]
[1672732743380,92.8,11.961,11.951,43.50349402]
[1672732744125,92.8,11.961,11.952,20.0]
[1672732744546,92.8,11.961,11.949,43.50349402]
[1672732744749,207.1992,11.961,11.948,43.50349402]
[1672732744957,161.7555,11.96,11.948,43.50349402]
[1672732745168,161.7555,11.96,11.953,43.50349402]
[1672732745800,161.7555,11.96,11.954,20.0]
[1672732746007,161.7555,11.96,11.953,43.50349402]
[1672732746324,161.7555,11.96,11.946,43.50349402]
[1672732746546,155.7022,11.959,11.946,43.50349402]
[1672732746764,155.7022,11.959,11.946,53.22282522]
[1672732747277,23.0628,11.958,11.947,20.0]
[1672732747487,23.0628,11.958,11.947,29.7193312]
[1672732747897,23.0628,11.958,11.948,9.7193312]
[1672732748123,335.0628,11.958,11.949,20.0]
[1672732748751,335.0628,11.958,11.947,20.0]
[1672732748973,30.0,11.957,11.947,20.0]
[1672732750233,62.82,11.956,11.947,20.0]
[1672732750762,52.5821,11.957,11.947,20.0]
[1672732751703,115.4021,11.957,11.947,20.0]
[1672732755800,85.4021,11.957,11.947,20.0]
[1672732756021,334.5821,11.957,11.948,30.0]
[1672732756226,334.5821,11.957,11.947,76.31449136]
[1672732756426,334.5821,11.957,11.949,56.31449136]
[1672732756637,334.5821,11.957,11.95,20.0]
[1672732757167,22.5821,11.957,11.95,76.31449136]
[1672732757380,62.77,11.966,11.95,76.31449136]
[1672732757582,217.3237,11.966,11.951,108.4451]
[1672732757793,217.3237,11.966,11.952,20.0]
[1672732757997,217.3237,11.966,11.952,84.02409372]
[1672732758219,22.8086,11.965,11.953,64.02409372]
[1672732758429,22.8086,11.965,11.954,20.0]
[1672732758639,22.8086,11.965,11.954,29.7193312]
[1672732759707,22.8086,11.965,11.954,20.0]
[1672732759708,52.8086,11.965,11.954,20.0]
[1672732760016,52.8086,11.965,11.953,20.0]
[1672732760226,312.0,11.962,11.953,20.0]
[1672732760547,30.0,11.961,11.953,20.0]
[1672732760761,30.0,11.961,11.944,20.0]
[1672732761067,117.4408,11.96,11.945,9.7193312]
[1672732761285,164.4826,11.96,11.946,139.3813]
[1672732761807,164.4826,11.96,11.946,149.1006312]
[1672732762120,160.0887,11.959,11.946,139.3813]
[1672732762521,22.7266,11.958,11.946,139.3813]
[1672732762963,22.7266,11.958,11.946,149.1006312]
[1672732763287,22.7266,11.957,11.946,185.97646016]
[1672732763464,30.0,11.956,11.946,139.3813]
[1672732763680,62.83,11.955,11.941,9.7193312]
[1672732763883,30.0,11.954,11.941,9.7193312]
[1672732764112,62.84,11.953,11.941,9.7193312]
[1672732764322,62.84,11.953,11.936,162.29030268]
[1672732764518,189.6329,11.952,11.937,9.7193312]
[1672732764724,62.85,11.951,11.937,9.7193312]
[1672732765144,182.238,11.951,11.937,9.7193312]
[1672732765370,30.0,11.95,11.937,9.7193312]
[1672732765797,62.86,11.949,11.937,9.7193312]
[1672732765990,62.86,11.949,11.936,117.5114]
[1672732766852,62.86,11.949,11.936,127.2307312]
[1672732767052,139.446,11.95,11.936,127.2307312]
[1672732767272,46.586,11.95,11.936,172.00963388]
[1672732767484,46.586,11.95,11.937,74.30476252]
[1672732767889,46.586,11.95,11.938,64.02409372]
[1672732768212,46.586,11.95,11.939,84.02409372]
[1672732768637,46.586,11.95,11.94,64.02409372]
[1672732768830,46.586,11.95,11.941,20.0]
[1672732769040,46.586,11.95,11.941,84.02409372]
[1672732769274,312.0,11.954,11.942,64.02409372]
[1672732769460,312.0,11.954,11.943,20.0]
[1672732769670,312.0,11.954,11.943,84.02409372]
[1672732769987,312.0,11.954,11.944,64.02409372]
[1672732770201,312.0,11.954,11.945,20.0]
[1672732770410,312.0,11.954,11.945,84.02409372]
[1672732770640,312.0,11.954,11.946,54.30476252]
[1672732770851,312.0,11.954,11.947,20.0]
[1672732772626,312.0,11.954,11.946,54.30476252]
[1672732772824,62.84,11.953,11.947,20.0]
[1672732773354,30.0,11.953,11.947,20.0]
[1672732776295,30.0,11.953,11.943,74.30476252]
[1672732776818,312.0,11.948,11.943,74.30476252]
[1672732777889,312.0,11.948,11.944,54.30476252]
[1672732778086,312.0,11.948,11.945,20.0]
[1672732779445,85.4193,11.954,11.944,54.30476252]
[1672732779663,22.5893,11.954,11.945,54.30476252]
[1672732781140,22.5893,11.954,11.946,20.0]
[1672732781685,22.5893,11.954,11.947,108.8029964]
[1672732781874,22.5893,11.954,11.948,20.0]
[1672732782085,131.6151,11.957,11.948,128.8029964]
[1672732782298,62.78,11.964,11.949,128.7429964]
[1672732782502,312.0,11.962,11.95,12.59]
[1672732782713,312.0,11.962,11.951,39.94]
[1672732782938,312.0,11.962,11.951,153.71766307]
[1672732783151,312.0,11.962,11.952,113.77766307]
[1672732783476,312.0,11.962,11.953,133.77766307]
[1672732783777,312.0,11.962,11.954,124.05833187]
[1672732784189,312.0,11.962,11.955,54.30476252]
[1672732784397,312.0,11.962,11.956,20.0]
[1672732784826,312.0,11.962,11.956,74.30476252]
[1672732785341,312.0,11.962,11.956,20.0]
[1672732785679,312.0,11.962,11.955,20.0]
[1672732785870,312.0,11.962,11.952,20.0]
[1672732786616,30.0,11.961,11.952,20.0]
[1672732787026,30.0,11.961,11.952,74.30476252]
[1672732787238,30.0,11.961,11.952,20.0]
[1672732787447,30.0,11.961,11.952,29.7193312]
[1672732787658,30.0,11.961,11.952,79.47290055]
[1672732788065,30.0,11.961,11.952,133.77766307]
[1672732788504,30.0,11.961,11.952,124.05833187]
[1672732788708,30.0,11.961,11.952,133.77766307]
[1672732789129,30.0,11.961,11.952,113.77766307]
[1672732790825,30.0,11.961,11.952,104.05833187]
[1672732791141,30.0,11.961,11.952,113.77766307]
[1672732792197,312.0,11.962,11.952,113.77766307]
[1672732792688,30.0,11.961,11.952,104.05833187]
[1672732792903,62.8,11.96,11.946,130.9955]
[1672732793113,228.4786,11.96,11.948,49.75356935]
[1672732793336,228.4786,11.96,11.949,20.0]
[1672732793757,165.6786,11.96,11.949,20.0]
[1672732793962,30.0,11.959,11.949,20.0]
[1672732794167,30.0,11.959,11.949,29.7193312]
[1672732794801,62.81,11.958,11.949,20.0]
[1672732795014,30.0,11.957,11.949,20.0]
[1672732795219,30.0,11.957,11.948,20.0]
[1672732795440,30.0,11.957,11.949,9.7193312]
[1672732795654,30.0,11.957,11.95,20.0]
[1672732795865,342.0,11.957,11.95,20.0]
[1672732796076,342.0,11.957,11.949,20.0]
[1672732796813,342.0,11.957,11.95,9.7193312]
[1672732797032,312.0,11.957,11.951,20.0]
[1672732797225,117.4382,11.958,11.951,20.0]
[1672732797432,62.78,11.964,11.952,9.7193312]
[1672732797647,92.78,11.965,11.953,20.0]
[1672732799022,92.78,11.965,11.951,49.75356935]
[1672732799215,256.9832,11.965,11.951,9.7193312]
[1672732799431,256.9832,11.965,11.948,51.38177207]
[1672732799660,30.0,11.963,11.948,51.38177207]
[1672732799973,30.0,11.961,11.949,9.7193312]
[1672732800292,30.0,11.961,11.947,46.79]
[1672732800293,30.0,11.956,11.947,46.79]
[1672732800512,30.0,11.956,11.948,20.0]
[1672732800513,92.82,11.956,11.948,20.0]
[1672732800819,30.0,11.956,11.947,46.79]
[1672732802281,30.0,11.956,11.948,20.0]
[1672732803425,30.0,11.956,11.948,29.7193312]
[1672732804597,30.0,11.956,11.943,96.61673125]
[1672732804789,30.0,11.956,7.2727,2.35123967]
[1672732804790,47.4287,11.955,11.93,63.7]
[1672732805000,30.0,11.953,11.93,63.7]
[1672732805224,178.0747,11.952,11.931,85.30483795]
[1672732805439,30.0,11.951,11.931,85.30483795]
[1672732805629,30.0,11.949,11.932,85.30483795]
[1672732805850,178.0947,11.948,11.93,12.82]
[1672732806046,30.0,11.947,11.93,12.82]
[1672732806263,30.0,11.945,11.93,12.82]
[1672732806488,30.0,11.945,11.931,9.7193312]
[1672732806912,30.0,11.943,11.93,63.7]
[1672732807123,12.67,11.94,11.912,146.91073351]
[1672732807324,68.7894252,11.939,11.928,9.7193312]
[1672732807518,270.2649,11.939,11.913,41.46321946]
[1672732807728,213.8407,11.938,11.921,9.7193312]
[1672732807947,30.0,11.936,11.913,41.46321946]
[1672732808166,312.0,11.926,11.91,12.72]
[1672732808379,30.0,11.925,11.914,9.44452857]
[1672732808601,92.99,11.925,11.909,84.20473333]
[1672732808794,92.99,11.925,11.911,9.44452857]
[1672732811529,92.99,11.925,11.909,42.74151387]
[1672732811871,374.98,11.926,11.911,78.63150462]
[1672732812036,312.0,11.926,11.911,78.63150462]
[1672732812246,312.0,11.926,11.912,9.44452857]
[1672732812457,312.0,11.926,11.913,30.0]
[1672732812663,24.5649,11.931,11.914,62.74151387]
[1672732812878,24.5649,11.931,11.916,30.0]
[1672732813099,24.5649,11.931,11.917,20.0]
[1672732813309,24.5649,11.931,11.917,72.93306706]
[1672732813505,24.5649,11.931,11.918,9.44452857]
[1672732813720,24.5649,11.931,11.919,20.0]
[1672732813943,24.5649,11.931,11.92,12.6]
[1672732814153,24.5649,11.931,11.921,20.0]
[1672732814363,24.5649,11.931,11.921,82.2064004]
[1672732814571,24.5649,11.931,11.922,61.4817747]
[1672732814766,24.5649,11.931,11.922,114.24364653]
[1672732814974,24.5649,11.931,11.923,134.24364653]
[1672732815210,24.5649,11.931,11.924,20.0]
[1672732815527,24.5649,11.931,11.924,82.2064004]
[1672732817192,24.5649,11.931,11.925,9.44452857]
[1672732817411,24.5649,11.931,11.926,20.0]
[1672732817620,24.5649,11.931,11.926,72.76187183]
[1672732818048,24.5649,11.931,11.926,20.0]
[1672732818238,24.5649,11.931,11.92,63.97]
[1672732818239,24.5649,11.931,11.923,52.76187183]
[1672732818450,24.5649,11.931,11.924,29.44452857]
[1672732818875,24.5649,11.931,11.925,9.44452857]
[1672732819204,24.5649,11.931,11.926,20.0]
[1672732819609,24.5649,11.931,11.926,82.2064004]
[1672732819816,24.5649,11.931,11.926,134.24364653]
[1672732820464,62.9,11.942,11.932,25.68473053]
[1672732820785,62.89,11.944,11.933,62.21454716]
[1672732820975,62.88,11.946,11.933,62.21454716]
[1672732821185,62.88,11.946,11.934,66.28788049]
[1672732821611,62.88,11.946,11.935,120.66512662]
[1672732822031,62.88,11.946,11.936,56.83520516]
[1672732822251,62.88,11.946,11.936,86.28788049]
[1672732822445,92.87,11.947,11.936,140.66512662]
[1672732822657,92.87,11.947,11.937,56.83520516]
[1672732822866,404.87,11.947,11.938,20.0]
[1672732823292,404.87,11.947,11.939,9.45267533]
[1672732823715,342.0,11.947,11.94,20.0]
[1672732824229,62.88,11.946,11.936,56.83520516]
[1672732824442,62.88,11.946,11.937,20.0]
[1672732824967,62.88,11.946,11.938,66.28788049]
[1672732825183,62.88,11.946,11.932,25.68473053]
[1672732825515,62.88,11.946,11.935,9.45267533]
[1672732825913,62.86,11.95,11.936,125.68578462]
[1672732826242,62.85,11.951,11.937,135.13845995]
[1672732826431,177.0178,11.951,11.94,12.72]
[1672732826640,62.85,11.951,11.941,20.0]
[1672732826855,86.0239,11.956,11.942,30.0]
[1672732827089,23.2039,11.956,11.943,20.0]
[1672732827283,23.2039,11.956,11.943,29.45267533]
[1672732827495,23.2039,11.956,11.944,9.45267533]
[1672732827809,23.2039,11.956,11.945,20.0]
[1672732828025,62.82,11.956,11.945,158.57088958]
[1672732828234,62.82,11.956,11.946,148.02356491]
[1672732828769,62.82,11.956,11.947,168.02356491]
[1672732829082,374.82,11.956,11.948,148.02356491]
[1672732829392,374.82,11.956,11.948,138.57088958]
[1672732829393,30.0,11.955,11.948,138.57088958]
[1672732829606,62.83,11.954,11.949,158.57088958]
[1672732829815,92.83,11.955,11.949,158.57088958]
[1672732830005,92.83,11.955,11.95,138.57088958]
[1672732830425,30.0,11.955,11.951,158.57088958]
[1672732831917,374.82,11.956,11.951,168.02356491]
[1672732832115,312.0,11.956,11.951,168.02356491]
[1672732833377,62.81,11.958,11.952,141.25755625]
[1672732833596,62.8,11.96,11.953,20.0]
[1672732833800,62.8,11.96,11.953,163.94422292]
[1672732834013,62.8,11.961,11.954,153.26498577]
[1672732834433,62.8,11.961,11.955,163.81231044]
[1672732834859,24.7457,11.962,11.956,143.81231044]
[1672732835063,62.79,11.963,11.956,143.81231044]
[1672732835273,62.79,11.963,11.955,20.0]
[1672732835274,62.78,11.964,11.957,143.81231044]
[1672732836236,62.78,11.964,11.958,73.31506431]
[1672732836427,312.0,11.964,11.959,20.0]
[1672732836644,312.0,11.964,11.959,90.49724613]
[1672732836847,312.0,11.964,11.96,143.81231044]
[1672732837062,164.3555,11.968,11.961,20.0]
[1672732837381,23.5985,11.971,11.962,73.31506431]
[1672732837580,157.3292,11.977,11.963,20.0]
[1672732837912,62.72,11.976,11.964,73.31506431]
[1672732838132,62.72,11.976,11.965,20.0]
[1672732838441,157.3292,11.977,11.965,157.49769426]
[1672732838650,30.0,11.986,11.966,155.7783191]
[1672732838839,30.0,11.984,11.967,20.0]
[1672732839056,62.68,11.983,11.97,5.97]
[1672732839373,110.1384,11.985,11.971,20.0]
[1672732839697,62.68,11.984,11.972,108.03450146]
[1672732840013,23.5139,11.986,11.974,30.0]
[1672732840205,23.5139,11.986,11.975,20.0]
[1672732840411,23.5139,11.986,11.975,199.42544602]
[1672732840632,23.5139,11.986,11.976,179.42544602]
[1672732840848,23.5139,11.986,11.975,20.0]
[1672732840849,62.67,11.985,11.975,20.0]
[1672732841059,62.67,11.985,11.973,20.0]
[1672732841274,62.67,11.985,11.967,30.0]
[1672732841275,62.67,11.985,11.974,59.47532732]
[1672732841492,62.67,11.985,11.975,20.0]
[1672732841687,62.67,11.985,11.975,77.5543279]
[1672732841903,62.67,11.985,11.976,69.53466932]
[1672732842104,62.67,11.985,11.976,179.79710135]
[1672732842312,23.5139,11.986,11.977,188.98376801]
[1672732842527,62.67,11.985,11.977,188.98376801]
[1672732842760,62.67,11.985,11.978,192.27710135]
[1672732843163,23.5139,11.986,11.979,221.03043468]
[1672732843363,62.64,11.991,11.979,221.03043468]
[1672732843580,62.64,11.991,11.98,194.94168517]
[1672732843784,62.64,11.991,11.981,20.0]
[1672732844098,62.64,11.991,11.982,139.38069061]
[1672732844332,62.64,11.992,11.983,20.0]
[1672732844529,62.64,11.992,11.983,223.59699851]
[1672732844854,62.64,11.992,11.984,153.25336593]
[1672732845069,62.64,11.992,11.985,20.0]
[1672732845259,62.64,11.992,11.985,204.73061384]
[1672732845463,62.64,11.992,11.986,87.27925314]
[1672732845674,62.64,11.992,11.986,186.98394717]
[1672732845902,62.63,11.993,11.987,186.98394717]
[1672732846306,62.62,11.995,11.988,186.98394717]
[1672732846526,35.94,12.0,11.988,186.98394717]
[1672732846527,62.6,11.998,11.988,186.98394717]
[1672732846956,179.8809,12.001,11.989,224.67596161]
[1672732847180,76.0809013,12.041,12.005,214.26584501]
[1672732847362,211.0168,12.032,12.005,214.26584501]
[1672732847577,62.43,12.031,12.018,56.8848934]
[1672732847792,62.43,12.031,12.006,224.09672656]
[1672732847793,62.43,12.031,12.007,30.0]
[1672732847998,11.86,12.02,12.003,49.99999999]
[1672732848217,5.94,12.01,12.003,49.99999999]
[1672732848423,211.0168,12.029,12.004,20.0]
[1672732848649,30.0,12.028,12.004,20.0]
[1672732848846,62.45,12.027,12.004,20.0]
[1672732849055,30.0,12.026,12.005,58.14563501]
[1672732849275,374.46,12.025,12.005,106.31376141]
[1672732849578,62.46,12.025,12.007,30.0]
[1672732849793,62.45,12.028,12.006,187.12758253]
[1672732849983,30.0,12.027,12.008,115.05019167]
[1672732850198,5.93,12.02,12.004,20.0]
[1672732850405,30.0,12.018,12.003,49.99999999]
[1672732850636,62.51,12.017,12.003,49.99999999]
[1672732851164,50.0,12.016,12.003,49.99999999]
[1672732851357,30.0,12.014,12.003,49.99999999]
[1672732851688,82.53,12.013,12.003,49.99999999]
[1672732851874,62.53,12.013,12.003,49.99999999]
[1672732852090,62.51,12.017,12.003,49.99999999]
[1672732852292,82.48,12.022,12.004,179.55206092]
[1672732852502,82.48,12.022,12.004,128.78393452]
[1672732852726,82.48,12.022,12.005,130.41976785]
[1672732852942,62.48,12.022,12.005,130.41976785]
[1672732853164,62.48,12.022,12.006,133.15826118]
[1672732853364,62.48,12.022,12.006,186.17972091]
[1672732853574,62.48,12.022,12.007,133.03633435]
[1672732853988,62.48,12.022,12.003,49.99999999]
[1672732853989,5.94,12.02,12.008,68.61462427]
[1672732854191,62.5,12.019,12.003,49.99999999]
[1672732854403,62.5,12.019,12.005,66.13980352]
[1672732855024,30.0,12.018,12.003,49.99999999]
[1672732855240,5.94,12.01,12.003,49.99999999]
[1672732855448,62.55,12.009,12.003,49.99999999]
[1672732855689,62.51,12.017,12.003,49.99999999]
[1672732855871,50.0,12.016,12.003,49.99999999]
[1672732856077,62.52,12.015,12.003,49.99999999]
[1672732856284,30.0,12.014,12.003,49.99999999]
[1672732856498,30.0,12.012,12.003,49.99999999]
[1672732856720,30.0,12.01,11.985,167.87392691]
[1672732856952,30.0,12.008,11.985,9.6891297]
[1672732857135,82.56,12.007,11.982,173.99583451]
[1672732857340,30.0,12.006,11.982,173.99583451]
[1672732857566,30.0,12.004,11.982,242.60179212]
[1672732857882,62.58,12.003,11.983,9.6891297]
[1672732858096,62.57,12.004,11.99,5.91]
[1672732858281,62.57,12.004,11.991,20.0]
[1672732858494,62.57,12.005,11.991,29.6891297]
[1672732858727,94.8814,12.006,11.991,20.0]
[1672732859352,62.57,12.005,11.991,89.43365685]
[1672732859573,94.8814,12.006,11.991,89.43365685]
[1672732859770,62.57,12.005,11.991,89.43365685]
[1672732859968,62.57,12.005,11.992,30.0]
[1672732860183,94.8814,12.006,11.993,20.0]
[1672732860397,94.8814,12.006,11.994,30.0]
[1672732860602,94.8814,12.006,11.994,69.43365685]
[1672732860829,94.8814,12.006,11.995,69.43365685]
[1672732861047,22.6893,12.006,11.995,140.95161446]
[1672732861365,22.6893,12.006,11.996,140.95161446]
[1672732861580,22.6893,12.006,11.997,30.0]
[1672732861888,22.6893,12.006,11.997,140.95161446]
[1672732862201,22.6893,12.006,11.998,143.72494779]
[1672732862418,22.6893,12.006,11.998,137.94569943]
[1672732862613,22.6893,12.006,11.999,71.51795761]
[1672732863158,22.6893,12.006,12.0,64.36282182]
[1672732863555,22.6893,12.006,11.999,81.20708731]
[1672732863556,22.6893,12.006,11.999,9.6891297]
[1672732863771,22.6893,12.006,11.993,20.0]
[1672732864204,22.6893,12.006,11.993,30.0]
[1672732864411,22.6893,12.006,11.994,206.52044211]
[1672732864618,22.6893,12.006,11.995,30.0]
[1672732864831,22.6893,12.006,11.995,153.72652779]
[1672732865039,22.6893,12.006,12.0,5.9]
[1672732865355,180.5186,12.011,12.001,20.0]
[1672732865574,62.54,12.011,12.001,20.0]
[1672732865790,62.54,12.011,12.001,144.15986112]
[1672732865971,108.3166,12.012,12.001,144.15986112]
[1672732866393,30.0,12.011,11.99,148.89087964]
[1672732866707,30.0,12.009,11.991,87.82162521]
[1672732866918,62.55,12.008,11.991,87.82162521]
[1672732867550,62.55,12.008,11.992,9.6891297]
[1672732867755,62.55,12.008,11.993,30.0]
[1672732867970,62.54,12.01,11.993,30.0]
[1672732868311,72.0121,12.011,11.994,77.51075491]
[1672732868502,62.54,12.01,11.994,67.82162521]
[1672732868710,62.54,12.01,11.995,87.82162521]
[1672732869033,72.0121,12.011,11.996,67.82162521]
[1672732869230,72.0121,12.011,11.996,77.51075491]
[1672732869442,72.0121,12.011,11.997,20.0]
[1672732869647,62.54,12.01,11.997,20.0]
[1672732869856,62.54,12.01,11.997,87.82162521]
[1672732870063,72.0121,12.011,11.997,87.82162521]
[1672732870283,62.54,12.01,11.997,87.82162521]
[1672732870500,62.54,12.01,11.998,67.82162521]
[1672732870723,72.0121,12.011,11.999,20.0]